[Event "Early-Titled-Tuesday-Blitz-October-17-2023"]
[Site "Chess.com"]
[Date "2023.10.17"]
[Round "7"]
[White "Grossboss19"]
[Black "Journey_to_GrandMaster_YT"]
[Result "1-0"]
[WhiteElo "2495"]
[BlackElo "2610"]
[TimeControl "180+1"]
[EndTime "9:22:07 PDT"]
[Termination "Grossboss19 won by resignation"]

1. d4 {[%clk 0:02:51.5]} 1... d6 {[%clk 0:03:00.5]} 2. Nc3 {[%clk 0:02:49.7]}
2... Nf6 {[%clk 0:03:00.5]} 3. e4 {[%clk 0:02:49.8]} 3... e5 {[%clk 0:03:01.2]}
4. dxe5 {[%clk 0:02:49.5]} 4... dxe5 {[%clk 0:03:02.1]} 5. Qxd8+ {[%clk
0:02:50.2]} 5... Kxd8 {[%clk 0:03:03]} 6. Nf3 {[%clk 0:02:50.6]} 6... Bd6 {[%clk
0:03:02.6]} 7. Bg5 {[%clk 0:02:48.7]} 7... c6 {[%clk 0:03:00.1]} 8. O-O-O {[%clk
0:02:47.6]} 8... Ke7 {[%clk 0:03:00.7]} 9. Nh4 {[%clk 0:02:45.1]} 9... h6 {[%clk
0:02:56.3]} 10. Bxf6+ {[%clk 0:02:43.7]} 10... gxf6 {[%clk 0:02:57.2]} 11. Nf5+
{[%clk 0:02:40.8]} 11... Bxf5 {[%clk 0:02:57]} 12. exf5 {[%clk 0:02:41.7]} 12...
Nd7 {[%clk 0:02:57.3]} 13. Ne4 {[%clk 0:02:33.3]} 13... Bc7 {[%clk 0:02:56.5]}
14. Be2 {[%clk 0:02:30.9]} 14... Rad8 {[%clk 0:02:52.1]} 15. Rd3 {[%clk
0:02:28.6]} 15... Nb6 {[%clk 0:02:20.1]} 16. Rhd1 {[%clk 0:02:19.9]} 16... Nd5
{[%clk 0:02:18.2]} 17. g3 {[%clk 0:02:16.9]} 17... b5 {[%clk 0:02:14.6]} 18. a3
{[%clk 0:02:06.4]} 18... a5 {[%clk 0:02:08.7]} 19. b3 {[%clk 0:01:49.4]} 19...
b4 {[%clk 0:02:07.6]} 20. c4 {[%clk 0:01:41]} 20... bxc3 {[%clk 0:01:34.1]} 21.
Nxc3 {[%clk 0:01:39.9]} 21... Nb6 {[%clk 0:01:26.6]} 22. Rxd8 {[%clk 0:01:31.3]}
22... Rxd8 {[%clk 0:01:14.2]} 23. Rxd8 {[%clk 0:01:30.4]} 23... Bxd8 {[%clk
0:01:14.9]} 24. Bf3 {[%clk 0:01:30.7]} 24... Kd6 {[%clk 0:01:13.3]} 25. Kd2
{[%clk 0:01:28.5]} 25... Nd7 {[%clk 0:01:02.3]} 26. b4 {[%clk 0:01:21.6]} 26...
axb4 {[%clk 0:01:01.3]} 27. axb4 {[%clk 0:01:22.5]} 27... Nb6 {[%clk 0:01:01.7]}
28. Kd3 {[%clk 0:01:22]} 28... Kc7 {[%clk 0:00:54.6]} 29. Bh5 {[%clk 0:01:18.9]}
29... Be7 {[%clk 0:00:53.2]} 30. b5 {[%clk 0:01:14.4]} 30... Bc5 {[%clk
0:00:42.8]} 31. Ne4 {[%clk 0:01:11.4]} 31... Be7 {[%clk 0:00:34.6]} 32. bxc6
{[%clk 0:01:11.3]} 32... Kxc6 {[%clk 0:00:28.1]} 33. Bxf7 {[%clk 0:01:11.2]}
33... Kb5 {[%clk 0:00:24.7]} 34. Be8+ {[%clk 0:01:10.2]} 34... Kb4 {[%clk
0:00:25]} 35. h4 {[%clk 0:01:07.2]} 35... Nc4 {[%clk 0:00:24.5]} 36. Bf7 {[%clk
0:01:05.3]} 36... Nb2+ {[%clk 0:00:24.2]} 37. Ke2 {[%clk 0:01:03.3]} 37... Na4
{[%clk 0:00:21.5]} 38. g4 {[%clk 0:00:55.3]} 38... Nc3+ {[%clk 0:00:18]} 39. Kd3
{[%clk 0:00:49.4]} 39... Nxe4 {[%clk 0:00:17.3]} 40. Kxe4 {[%clk 0:00:50.3]}
40... Kc5 {[%clk 0:00:17.7]} 41. Bg8 {[%clk 0:00:40.4]} 41... Kd6 {[%clk
0:00:17.3]} 42. f3 {[%clk 0:00:39.8]} 42... Bd8 {[%clk 0:00:17.1]} 43. Ba2
{[%clk 0:00:39.3]} 43... Ba5 {[%clk 0:00:15.6]} 44. g5 {[%clk 0:00:36.5]} 44...
fxg5 {[%clk 0:00:15.5]} 45. hxg5 {[%clk 0:00:36.7]} 45... hxg5 {[%clk
0:00:15.7]} 46. f6 {[%clk 0:00:37.2]} 46... Bd8 {[%clk 0:00:05.1]} 47. Kf5
{[%clk 0:00:37]} 47... Ba5 {[%clk 0:00:03.3]} 48. Kxg5 {[%clk 0:00:25.4]} 48...
Kd7 {[%clk 0:00:03.9]} 49. Kg6 {[%clk 0:00:25.1]} 49... Bb4 {[%clk 0:00:02.6]}
50. Kf7 {[%clk 0:00:23.9]} 50... Kd8 {[%clk 0:00:02.6]} 51. Bc4 {[%clk
0:00:19.1]} 51... Kd7 {[%clk 0:00:02.7]} 52. Bb5+ {[%clk 0:00:19.2]} 52... Kd8
{[%clk 0:00:03]} 53. Kg8 {[%clk 0:00:19]} 53... Kc7 {[%clk 0:00:02.4]} 54. f7
{[%clk 0:00:19]} 54... Kb6 {[%clk 0:00:02.3]} 55. Bd3 {[%clk 0:00:19.2]} 55...
Bd6 {[%clk 0:00:02.1]} 56. Be4 {[%clk 0:00:19.1]} 56... Kc5 {[%clk 0:00:02]} 57.
f8=Q {[%clk 0:00:19.7]} 57... Bxf8 {[%clk 0:00:02.3]} 58. Kxf8 {[%clk
0:00:20.6]} 58... Kd6 {[%clk 0:00:02.1]} 59. Kf7 {[%clk 0:00:21]} 59... Kd7
{[%clk 0:00:02.4]} 60. Kf6 {[%clk 0:00:21.5]} 60... Kd6 {[%clk 0:00:03.1]} 61.
Kf5 {[%clk 0:00:22.1]} 61... Kd7 {[%clk 0:00:03.1]} 62. Kxe5 {[%clk 0:00:22.7]}
62... Ke7 {[%clk 0:00:04]} 63. f4 {[%clk 0:00:22.9]} 63... Ke8 {[%clk
0:00:04.3]} 64. Kf6 {[%clk 0:00:23.1]} 64... Kf8 {[%clk 0:00:05.2]} 65. Bd5
{[%clk 0:00:21.9]} 65... Ke8 {[%clk 0:00:06.1]} 66. Kg7 {[%clk 0:00:22.4]} 66...
Ke7 {[%clk 0:00:06.5]} 67. f5 {[%clk 0:00:23.1]} 67... Kd6 {[%clk 0:00:07.4]}
68. Ba2 {[%clk 0:00:23.5]} 68... Ke5 {[%clk 0:00:07.8]} 69. f6 {[%clk
0:00:24.1]} 69... Kd6 {[%clk 0:00:08.7]} 70. f7 {[%clk 0:00:24.8]} 70... Ke5
{[%clk 0:00:08.4]} 71. f8=Q {[%clk 0:00:24.1]} 1-0

[Event "Early-Titled-Tuesday-Blitz-October-17-2023"]
[Site "Chess.com"]
[Date "2023.10.17"]
[Round "7"]
[White "Levanzovsky"]
[Black "KVAIDAN"]
[Result "1-0"]
[WhiteElo "2410"]
[BlackElo "2269"]
[TimeControl "180+1"]
[EndTime "9:22:12 PDT"]
[Termination "Levanzovsky won by checkmate"]

1. e4 {[%clk 0:03:00.9]} 1... e5 {[%clk 0:02:58.5]} 2. Nf3 {[%clk 0:03:00.3]}
2... d5 {[%clk 0:02:58]} 3. Nxe5 {[%clk 0:02:57.1]} 3... Bd6 {[%clk 0:02:56.5]}
4. d4 {[%clk 0:02:56]} 4... dxe4 {[%clk 0:02:55]} 5. Nc3 {[%clk 0:02:55]} 5...
Bxe5 {[%clk 0:02:55.1]} 6. dxe5 {[%clk 0:02:54.9]} 6... Qxd1+ {[%clk 0:02:55.8]}
7. Kxd1 {[%clk 0:02:55.7]} 7... Bf5 {[%clk 0:02:54.7]} 8. Bb5+ {[%clk
0:02:29.4]} 8... c6 {[%clk 0:02:50.9]} 9. Ba4 {[%clk 0:02:30]} 9... Nd7 {[%clk
0:02:50.5]} 10. Re1 {[%clk 0:02:27.9]} 10... O-O-O {[%clk 0:02:49.4]} 11. Bd2
{[%clk 0:02:24.8]} 11... Nc5 {[%clk 0:02:41.1]} 12. Bb3 {[%clk 0:02:22.7]} 12...
Nh6 {[%clk 0:02:26.5]} 13. h3 {[%clk 0:02:06.7]} 13... Rhe8 {[%clk 0:02:24.3]}
14. g4 {[%clk 0:01:59.6]} 14... Bg6 {[%clk 0:02:13.1]} 15. Kc1 {[%clk
0:01:10.2]} 15... Rxe5 {[%clk 0:02:12.3]} 16. f4 {[%clk 0:01:10.8]} 16... e3
{[%clk 0:01:53.3]} 17. Rxe3 {[%clk 0:01:08.4]} 17... Rxe3 {[%clk 0:01:41.9]} 18.
Bxe3 {[%clk 0:01:09.3]} 18... Nxb3+ {[%clk 0:01:42.4]} 19. axb3 {[%clk
0:01:09.1]} 19... f5 {[%clk 0:01:40.2]} 20. g5 {[%clk 0:01:05.8]} 20... Nf7
{[%clk 0:01:37.4]} 21. Rxa7 {[%clk 0:01:06.7]} 21... Nd6 {[%clk 0:01:37.5]} 22.
Bb6 {[%clk 0:00:52.9]} 22... Re8 {[%clk 0:01:34.3]} 23. Na4 {[%clk 0:00:51.6]}
23... Ne4 {[%clk 0:01:08.7]} 24. Ra8+ {[%clk 0:00:41]} 24... Kd7 {[%clk
0:01:08.4]} 25. Rxe8 {[%clk 0:00:41.9]} 25... Kxe8 {[%clk 0:01:08.5]} 26. Bd4
{[%clk 0:00:42.8]} 26... b5 {[%clk 0:01:02.7]} 27. Bc5 {[%clk 0:00:43.2]} 27...
bxa4 {[%clk 0:01:00.9]} 28. Bd4 {[%clk 0:00:42.6]} 28... axb3 {[%clk 0:00:59.5]}
29. Bxg7 {[%clk 0:00:41.3]} 29... bxc2 {[%clk 0:00:58.9]} 30. Kxc2 {[%clk
0:00:42.2]} 30... Nf2 {[%clk 0:00:58.9]} 31. h4 {[%clk 0:00:40.6]} 31... Ng4
{[%clk 0:00:53.4]} 32. Kc3 {[%clk 0:00:40.1]} 32... Kf7 {[%clk 0:00:53.8]} 33.
Bd4 {[%clk 0:00:39.8]} 33... Ke6 {[%clk 0:00:54]} 34. Kc4 {[%clk 0:00:40]} 34...
Kd6 {[%clk 0:00:53.7]} 35. Bc5+ {[%clk 0:00:40.8]} 35... Kd7 {[%clk 0:00:53.3]}
36. Bd4 {[%clk 0:00:41.7]} 36... Nh2 {[%clk 0:00:53]} 37. Bf2 {[%clk 0:00:37.3]}
37... Kd6 {[%clk 0:00:50.6]} 38. Kd4 {[%clk 0:00:38]} 38... Bf7 {[%clk
0:00:48.8]} 39. b4 {[%clk 0:00:35.7]} 39... Ba2 {[%clk 0:00:47.9]} 40. Bg3
{[%clk 0:00:29.9]} 40... Ng4 {[%clk 0:00:43.8]} 41. Be1 {[%clk 0:00:30]} 41...
Nh2 {[%clk 0:00:42.5]} 42. Bg3 {[%clk 0:00:24.4]} 42... Nf3+ {[%clk 0:00:42.5]}
43. Ke3 {[%clk 0:00:24.4]} 43... Bd5 {[%clk 0:00:41.6]} 44. Bf2 {[%clk
0:00:22.6]} 44... Be4 {[%clk 0:00:41.7]} 45. Bg3 {[%clk 0:00:21.8]} 45... Kd5
{[%clk 0:00:42.1]} 46. Bf2 {[%clk 0:00:20.4]} 46... Kc4 {[%clk 0:00:42.4]} 47.
h5 {[%clk 0:00:21]} 47... Nd4 {[%clk 0:00:37.5]} 48. g6 {[%clk 0:00:18.5]} 48...
hxg6 {[%clk 0:00:29.4]} 49. h6 {[%clk 0:00:19.1]} 49... g5 {[%clk 0:00:29.5]}
50. h7 {[%clk 0:00:18.8]} 50... gxf4+ {[%clk 0:00:29.3]} 51. Kd2 {[%clk
0:00:15.1]} 51... Nb3+ {[%clk 0:00:25.5]} 52. Ke1 {[%clk 0:00:14.5]} 52... Nc1
{[%clk 0:00:20.4]} 53. h8=Q {[%clk 0:00:13.7]} 53... Nd3+ {[%clk 0:00:20.7]} 54.
Kf1 {[%clk 0:00:13.7]} 54... Nxb4 {[%clk 0:00:20.2]} 55. Qd4+ {[%clk 0:00:12.9]}
55... Kb5 {[%clk 0:00:19.3]} 56. Qc5+ {[%clk 0:00:13.3]} 56... Ka4 {[%clk
0:00:19.5]} 57. Be1 {[%clk 0:00:13.8]} 57... Nd3 {[%clk 0:00:18.9]} 58. Qc4+
{[%clk 0:00:13.7]} 58... Ka3 {[%clk 0:00:18.2]} 59. Bc3 {[%clk 0:00:13.5]} 59...
f3 {[%clk 0:00:15.5]} 60. Kg1 {[%clk 0:00:10.9]} 60... f2+ {[%clk 0:00:15.5]}
61. Kf1 {[%clk 0:00:11.6]} 61... f4 {[%clk 0:00:14.9]} 62. Qxe4 {[%clk
0:00:10.6]} 62... Nc5 {[%clk 0:00:11.7]} 63. Qb4+ {[%clk 0:00:09.7]} 63... Ka2
{[%clk 0:00:08.3]} 64. Qb2# {[%clk 0:00:10.6]} 1-0

[Event "Early-Titled-Tuesday-Blitz-October-17-2023"]
[Site "Chess.com"]
[Date "2023.10.17"]
[Round "7"]
[White "Sychev_Klementy"]
[Black "Polish_fighter3000"]
[Result "0-1"]
[WhiteElo "2846"]
[BlackElo "3046"]
[TimeControl "180+1"]
[EndTime "9:22:16 PDT"]
[Termination "Polish_fighter3000 won on time"]

1. e4 {[%clk 0:03:00.9]} 1... e6 {[%clk 0:03:00.9]} 2. d4 {[%clk 0:02:57.8]}
2... c5 {[%clk 0:03:01.4]} 3. d5 {[%clk 0:02:54.6]} 3... exd5 {[%clk 0:03:00.5]}
4. exd5 {[%clk 0:02:55.5]} 4... d6 {[%clk 0:03:01]} 5. Nf3 {[%clk 0:02:53.3]}
5... Nf6 {[%clk 0:03:01]} 6. Nc3 {[%clk 0:02:53.6]} 6... a6 {[%clk 0:02:59.5]}
7. a4 {[%clk 0:02:53.2]} 7... Be7 {[%clk 0:02:58]} 8. Be2 {[%clk 0:02:53]} 8...
O-O {[%clk 0:02:58.6]} 9. O-O {[%clk 0:02:53.3]} 9... Re8 {[%clk 0:02:59.4]} 10.
Re1 {[%clk 0:02:50.6]} 10... h6 {[%clk 0:02:57.3]} 11. h3 {[%clk 0:02:49.9]}
11... Bf5 {[%clk 0:02:56.7]} 12. Bf4 {[%clk 0:02:44.1]} 12... Bf8 {[%clk
0:02:55.4]} 13. Qd2 {[%clk 0:02:40.8]} 13... Ne4 {[%clk 0:02:53.2]} 14. Nxe4
{[%clk 0:02:40.3]} 14... Bxe4 {[%clk 0:02:54.1]} 15. a5 {[%clk 0:02:34]} 15...
Nd7 {[%clk 0:02:53.8]} 16. c4 {[%clk 0:02:32.5]} 16... Qf6 {[%clk 0:02:45.6]}
17. Bg3 {[%clk 0:02:30.8]} 17... g6 {[%clk 0:02:33.6]} 18. Rac1 {[%clk
0:02:27.8]} 18... Bg7 {[%clk 0:02:29.4]} 19. b3 {[%clk 0:02:27.3]} 19... Bxf3
{[%clk 0:02:24.1]} 20. Bxf3 {[%clk 0:02:26.6]} 20... Ne5 {[%clk 0:02:22.6]} 21.
Be2 {[%clk 0:02:18.3]} 21... Re7 {[%clk 0:02:21.7]} 22. Bf1 {[%clk 0:02:16.2]}
22... Rae8 {[%clk 0:02:21.4]} 23. Re2 {[%clk 0:02:10.9]} 23... Qg5 {[%clk
0:02:10.3]} 24. Qc2 {[%clk 0:02:04.8]} 24... f5 {[%clk 0:01:52.4]} 25. Bxe5
{[%clk 0:01:39.9]} 25... Bxe5 {[%clk 0:01:53.3]} 26. Rce1 {[%clk 0:01:39.8]}
26... h5 {[%clk 0:01:53.3]} 27. Qd3 {[%clk 0:01:36.8]} 27... h4 {[%clk 0:01:51]}
28. Qf3 {[%clk 0:01:37]} 28... Kf8 {[%clk 0:01:47.9]} 29. Kh1 {[%clk 0:01:35]}
29... Bd4 {[%clk 0:01:34.7]} 30. Re6 {[%clk 0:01:28.7]} 30... Qd2 {[%clk
0:01:24.3]} 31. R1e2 {[%clk 0:01:20.7]} 31... Qc1 {[%clk 0:01:13.4]} 32. Kg1
{[%clk 0:01:18.5]} 32... Kf7 {[%clk 0:01:07.3]} 33. g4 {[%clk 0:00:46.8]} 33...
hxg3 {[%clk 0:01:04.6]} 34. Qxg3 {[%clk 0:00:46.8]} 34... Rxe6 {[%clk
0:00:51.6]} 35. dxe6+ {[%clk 0:00:42.1]} 35... Rxe6 {[%clk 0:00:26.4]} 36. Rxe6
{[%clk 0:00:43]} 36... Kxe6 {[%clk 0:00:27.3]} 37. Qxg6+ {[%clk 0:00:42.8]}
37... Ke7 {[%clk 0:00:10.7]} 38. Qxf5 {[%clk 0:00:41]} 38... Qe1 {[%clk
0:00:10.4]} 39. Qf3 {[%clk 0:00:36.7]} 39... Kd8 {[%clk 0:00:09.7]} 40. h4
{[%clk 0:00:33.8]} 40... Kc7 {[%clk 0:00:10.1]} 41. h5 {[%clk 0:00:31.7]} 41...
Qxa5 {[%clk 0:00:10.7]} 42. Bg2 {[%clk 0:00:26.3]} 42... Qe1+ {[%clk 0:00:07]}
43. Kh2 {[%clk 0:00:26.7]} 43... Qb4 {[%clk 0:00:04.1]} 44. h6 {[%clk
0:00:24.2]} 44... Be5+ {[%clk 0:00:04.3]} 45. Kh3 {[%clk 0:00:20.6]} 45... Kb8
{[%clk 0:00:04.5]} 46. h7 {[%clk 0:00:20.3]} 46... Ka7 {[%clk 0:00:04.2]} 47.
Kg4 {[%clk 0:00:10.4]} 47... Bc3 {[%clk 0:00:04]} 48. Qd5 {[%clk 0:00:07.8]}
48... Qxb3 {[%clk 0:00:03.2]} 49. f4 {[%clk 0:00:06]} 49... a5 {[%clk 0:00:03]}
50. Qxd6 {[%clk 0:00:03.2]} 50... Qb4 {[%clk 0:00:03.6]} 51. Qd7 {[%clk
0:00:01.1]} 51... a4 {[%clk 0:00:03.7]} 52. Bxb7 {[%clk 0:00:01.1]} 52... Qxb7
{[%clk 0:00:04.3]} 53. Qxa4+ {[%clk 0:00:01.5]} 53... Kb8 {[%clk 0:00:04.5]} 54.
Qe8+ {[%clk 0:00:01.6]} 54... Ka7 {[%clk 0:00:05]} 55. Qa4+ {[%clk 0:00:01.8]}
55... Kb8 {[%clk 0:00:05.3]} 56. Qe8+ {[%clk 0:00:02.1]} 56... Qc8+ {[%clk
0:00:05.7]} 57. Qxc8+ {[%clk 0:00:02.4]} 57... Kxc8 {[%clk 0:00:06.6]} 58. Kf5
{[%clk 0:00:02.9]} 58... Kd7 {[%clk 0:00:07.1]} 59. Kg6 {[%clk 0:00:02.5]} 59...
Ke6 {[%clk 0:00:07.1]} 60. f5+ {[%clk 0:00:02.6]} 60... Ke7 {[%clk 0:00:07.7]}
61. Kg5 {[%clk 0:00:02.9]} 61... Kf7 {[%clk 0:00:08]} 62. Kf4 {[%clk 0:00:02]}
62... Kg7 {[%clk 0:00:08.2]} 63. Ke4 {[%clk 0:00:01.9]} 63... Kxh7 {[%clk
0:00:08.4]} 64. Kd5 {[%clk 0:00:02.2]} 64... Bd4 {[%clk 0:00:09]} 0-1

[Event "Early-Titled-Tuesday-Blitz-October-17-2023"]
[Site "Chess.com"]
[Date "2023.10.17"]
[Round "7"]
[White "Maect19"]
[Black "Ariadna_Atreides"]
[Result "1-0"]
[WhiteElo "2238"]
[BlackElo "2205"]
[TimeControl "180+1"]
[EndTime "9:22:16 PDT"]
[Termination "Maect19 won on time"]

1. d4 {[%clk 0:03:00.9]} 1... Nf6 {[%clk 0:02:59.4]} 2. Nf3 {[%clk 0:03:00.1]}
2... e6 {[%clk 0:02:58.2]} 3. e3 {[%clk 0:02:59.9]} 3... c5 {[%clk 0:02:57.2]}
4. Bd3 {[%clk 0:02:59.3]} 4... Be7 {[%clk 0:02:52.9]} 5. O-O {[%clk 0:02:59]}
5... b6 {[%clk 0:02:52.1]} 6. b3 {[%clk 0:02:58.8]} 6... Bb7 {[%clk 0:02:52.1]}
7. Bb2 {[%clk 0:02:58.9]} 7... cxd4 {[%clk 0:02:51.3]} 8. exd4 {[%clk
0:02:58.2]} 8... O-O {[%clk 0:02:49.6]} 9. c4 {[%clk 0:02:57.9]} 9... d5 {[%clk
0:02:47.2]} 10. Nbd2 {[%clk 0:02:51.8]} 10... dxc4 {[%clk 0:02:42.8]} 11. Nxc4
{[%clk 0:02:50.4]} 11... Nc6 {[%clk 0:02:30.9]} 12. Nce5 {[%clk 0:02:41.4]}
12... Nb4 {[%clk 0:02:24.9]} 13. Bb1 {[%clk 0:02:39.8]} 13... Rc8 {[%clk
0:02:12.8]} 14. Qe2 {[%clk 0:02:31.4]} 14... Ba6 {[%clk 0:02:04.7]} 15. Nc4
{[%clk 0:02:14.5]} 15... Qd5 {[%clk 0:01:57.1]} 16. Rc1 {[%clk 0:02:11.1]} 16...
Bb7 {[%clk 0:01:25.7]} 17. a3 {[%clk 0:02:02.5]} 17... Nc6 {[%clk 0:01:21.7]}
18. Bd3 {[%clk 0:01:55.8]} 18... Rfd8 {[%clk 0:01:19.5]} 19. Rd1 {[%clk
0:01:22.8]} 19... Qh5 {[%clk 0:01:10.9]} 20. Nce5 {[%clk 0:01:13.3]} 20... Nd5
{[%clk 0:01:02.4]} 21. Qe4 {[%clk 0:00:56.1]} 21... f5 {[%clk 0:00:44]} 22. Qe1
{[%clk 0:00:46.3]} 22... Nf4 {[%clk 0:00:36.2]} 23. Bf1 {[%clk 0:00:40]} 23...
Nxe5 {[%clk 0:00:21.4]} 24. Qxe5 {[%clk 0:00:19.8]} 24... Bd6 {[%clk 0:00:20.5]}
25. Qe3 {[%clk 0:00:18.8]} 25... Bxf3 {[%clk 0:00:19.7]} 26. Qxf3 {[%clk
0:00:18.5]} 26... Qxf3 {[%clk 0:00:17.9]} 27. gxf3 {[%clk 0:00:19.4]} 27... Kf7
{[%clk 0:00:17]} 28. Bc4 {[%clk 0:00:19.4]} 28... Rc7 {[%clk 0:00:15]} 29. Re1
{[%clk 0:00:19.5]} 29... g5 {[%clk 0:00:14.5]} 30. Bc1 {[%clk 0:00:19]} 30...
Rdc8 {[%clk 0:00:11.5]} 31. Bxf4 {[%clk 0:00:18.2]} 31... Bxf4 {[%clk
0:00:09.8]} 32. Bxe6+ {[%clk 0:00:18.8]} 32... Kf6 {[%clk 0:00:10]} 33. Bxc8
{[%clk 0:00:19.3]} 33... Rxc8 {[%clk 0:00:10.7]} 34. Rad1 {[%clk 0:00:18.5]}
34... Rc3 {[%clk 0:00:09.9]} 35. d5 {[%clk 0:00:17.1]} 35... Rc7 {[%clk
0:00:06]} 36. Re6+ {[%clk 0:00:14.6]} 36... Kf7 {[%clk 0:00:05.6]} 37. Rc6
{[%clk 0:00:14.6]} 37... Rd7 {[%clk 0:00:05.3]} 38. d6 {[%clk 0:00:14.7]} 38...
Ke6 {[%clk 0:00:04.7]} 39. Rc7 {[%clk 0:00:14.7]} 39... Rxc7 {[%clk 0:00:02.5]}
40. dxc7 {[%clk 0:00:14.4]} 40... Bxc7 {[%clk 0:00:03.4]} 41. Rc1 {[%clk
0:00:14.5]} 41... Bd6 {[%clk 0:00:03.4]} 42. a4 {[%clk 0:00:13.2]} 42... a6
{[%clk 0:00:02.9]} 43. Kf1 {[%clk 0:00:13.4]} 43... b5 {[%clk 0:00:03.2]} 44.
Ke2 {[%clk 0:00:13]} 44... bxa4 {[%clk 0:00:03.3]} 45. bxa4 {[%clk 0:00:12.9]}
45... a5 {[%clk 0:00:03.6]} 46. Rc8 {[%clk 0:00:12.3]} 46... Kd5 {[%clk
0:00:03.4]} 47. Kd3 {[%clk 0:00:12.9]} 47... Bxh2 {[%clk 0:00:03.2]} 48. Rg8
{[%clk 0:00:12.8]} 48... h6 {[%clk 0:00:02]} 49. Rg6 {[%clk 0:00:12.6]} 49...
Bg1 {[%clk 0:00:02.2]} 50. Ke2 {[%clk 0:00:11.3]} 50... Bh2 {[%clk 0:00:02.4]}
51. Rxh6 {[%clk 0:00:11.2]} 51... Bf4 {[%clk 0:00:02.6]} 52. Rf6 {[%clk
0:00:11.2]} 52... Kc4 {[%clk 0:00:02.6]} 53. Rxf5 {[%clk 0:00:11.1]} 53... Kb4
{[%clk 0:00:02.9]} 54. Kd3 {[%clk 0:00:11.3]} 54... Kxa4 {[%clk 0:00:03.1]} 55.
Kc4 {[%clk 0:00:11.7]} 55... Bd2 {[%clk 0:00:01.4]} 56. Rd5 {[%clk 0:00:11.6]}
56... Ka3 {[%clk 0:00:02]} 57. Kd3 {[%clk 0:00:09]} 57... Bb4 {[%clk 0:00:02.1]}
58. Kc2 {[%clk 0:00:09]} 58... a4 {[%clk 0:00:02.4]} 59. Rxg5 {[%clk 0:00:08.9]}
59... Ka2 {[%clk 0:00:02.7]} 60. f4 {[%clk 0:00:08.4]} 60... a3 {[%clk
0:00:03.1]} 61. f5 {[%clk 0:00:08.1]} 61... Ka1 {[%clk 0:00:02.9]} 62. Rg1+
{[%clk 0:00:08.5]} 62... Ka2 {[%clk 0:00:02.5]} 63. f6 {[%clk 0:00:09.1]} 63...
Bd6 {[%clk 0:00:01.9]} 64. f7 {[%clk 0:00:09.5]} 64... Be7 {[%clk 0:00:01.1]}
65. Rg8 {[%clk 0:00:09]} 1-0

[Event "Early-Titled-Tuesday-Blitz-October-17-2023"]
[Site "Chess.com"]
[Date "2023.10.17"]
[Round "7"]
[White "Nitzan_Steinberg"]
[Black "Lennis93"]
[Result "1-0"]
[WhiteElo "2851"]
[BlackElo "2709"]
[TimeControl "180+1"]
[EndTime "9:22:17 PDT"]
[Termination "Nitzan_Steinberg won on time"]

1. Nf3 {[%clk 0:03:00.9]} 1... d5 {[%clk 0:02:59.6]} 2. g3 {[%clk 0:03:01.5]}
2... Nf6 {[%clk 0:02:59.5]} 3. Bg2 {[%clk 0:03:02.2]} 3... Bf5 {[%clk
0:02:58.7]} 4. O-O {[%clk 0:03:02.4]} 4... e6 {[%clk 0:02:59.3]} 5. d3 {[%clk
0:03:02.2]} 5... h6 {[%clk 0:02:58.9]} 6. Nbd2 {[%clk 0:03:02.4]} 6... Bh7
{[%clk 0:02:59]} 7. Qe1 {[%clk 0:03:03.1]} 7... Nc6 {[%clk 0:02:56.7]} 8. a3
{[%clk 0:03:01.6]} 8... Bc5 {[%clk 0:02:53.3]} 9. b4 {[%clk 0:03:00.9]} 9... Bb6
{[%clk 0:02:53.5]} 10. Bb2 {[%clk 0:03:00.9]} 10... O-O {[%clk 0:02:53.1]} 11.
c4 {[%clk 0:02:59.2]} 11... a5 {[%clk 0:02:42.3]} 12. c5 {[%clk 0:02:55.6]}
12... Ba7 {[%clk 0:02:42.2]} 13. b5 {[%clk 0:02:56]} 13... Nb8 {[%clk
0:02:29.9]} 14. Rc1 {[%clk 0:02:48.3]} 14... Nbd7 {[%clk 0:02:29.9]} 15. d4
{[%clk 0:02:47.4]} 15... c6 {[%clk 0:02:30.2]} 16. a4 {[%clk 0:02:46.6]} 16...
Bb8 {[%clk 0:02:28.3]} 17. e3 {[%clk 0:02:41.7]} 17... Re8 {[%clk 0:02:28.1]}
18. Qe2 {[%clk 0:02:33.9]} 18... e5 {[%clk 0:02:28.2]} 19. dxe5 {[%clk
0:02:33.8]} 19... Nxe5 {[%clk 0:02:26.1]} 20. Bxe5 {[%clk 0:02:33.5]} 20... Bxe5
{[%clk 0:02:26.3]} 21. Nxe5 {[%clk 0:02:34.1]} 21... Rxe5 {[%clk 0:02:26.4]} 22.
Nf3 {[%clk 0:02:34.8]} 22... Re7 {[%clk 0:02:21.8]} 23. bxc6 {[%clk 0:02:30.5]}
23... bxc6 {[%clk 0:02:21.6]} 24. Nd4 {[%clk 0:02:30.7]} 24... Qd7 {[%clk
0:02:21]} 25. Qb2 {[%clk 0:02:23.2]} 25... Ree8 {[%clk 0:01:54.2]} 26. Qb6
{[%clk 0:02:13.8]} 26... Rec8 {[%clk 0:01:53.8]} 27. f3 {[%clk 0:01:51.7]} 27...
h5 {[%clk 0:01:32.7]} 28. h4 {[%clk 0:01:49.4]} 28... Bd3 {[%clk 0:01:23.5]} 29.
Rf2 {[%clk 0:01:49.2]} 29... Qe8 {[%clk 0:01:09]} 30. Re1 {[%clk 0:01:41.4]}
30... Nd7 {[%clk 0:00:58]} 31. Qb2 {[%clk 0:01:34.8]} 31... Nxc5 {[%clk
0:00:57.5]} 32. Qa3 {[%clk 0:01:34.9]} 32... Qf8 {[%clk 0:00:54.5]} 33. Rc1
{[%clk 0:01:34.1]} 33... Bc4 {[%clk 0:00:54.5]} 34. Bf1 {[%clk 0:01:20.9]} 34...
Nb3 {[%clk 0:00:54.6]} 35. Qxf8+ {[%clk 0:01:13.5]} 35... Kxf8 {[%clk
0:00:55.5]} 36. Rc3 {[%clk 0:01:06.2]} 36... Bxf1 {[%clk 0:00:44.2]} 37. Nxb3
{[%clk 0:01:05.2]} 37... Bc4 {[%clk 0:00:42.1]} 38. Nd2 {[%clk 0:01:04.9]} 38...
Ba6 {[%clk 0:00:39.5]} 39. Nb3 {[%clk 0:01:02]} 39... Ke7 {[%clk 0:00:28.8]} 40.
Rfc2 {[%clk 0:00:56.9]} 40... Kd6 {[%clk 0:00:20.8]} 41. Nxa5 {[%clk 0:00:56.2]}
41... c5 {[%clk 0:00:20]} 42. Nb3 {[%clk 0:00:56.7]} 42... Bc4 {[%clk
0:00:14.2]} 43. Nd2 {[%clk 0:00:57.1]} 43... Rxa4 {[%clk 0:00:13.6]} 44. Nxc4+
{[%clk 0:00:57.5]} 44... dxc4 {[%clk 0:00:14.2]} 45. e4 {[%clk 0:00:45]} 45...
Rb8 {[%clk 0:00:13.3]} 46. Rxc4 {[%clk 0:00:44.3]} 46... Rxc4 {[%clk 0:00:12.7]}
47. Rxc4 {[%clk 0:00:45.2]} 47... Rb2 {[%clk 0:00:12.6]} 48. Kf1 {[%clk
0:00:42.1]} 48... Kc6 {[%clk 0:00:13.1]} 49. f4 {[%clk 0:00:40.7]} 49... Kb5
{[%clk 0:00:13.6]} 50. Rc1 {[%clk 0:00:40.7]} 50... c4 {[%clk 0:00:14.1]} 51. e5
{[%clk 0:00:39.9]} 51... Kb4 {[%clk 0:00:10.3]} 52. f5 {[%clk 0:00:40.1]} 52...
Rh2 {[%clk 0:00:09.2]} 53. e6 {[%clk 0:00:35.6]} 53... fxe6 {[%clk 0:00:09]} 54.
fxe6 {[%clk 0:00:36.2]} 54... Ra2 {[%clk 0:00:03.7]} 55. Re1 {[%clk 0:00:14.4]}
55... Ra8 {[%clk 0:00:02.9]} 56. Ke2 {[%clk 0:00:14.6]} 56... Kb3 {[%clk
0:00:02.2]} 57. Ke3 {[%clk 0:00:12.6]} 57... c3 {[%clk 0:00:02.6]} 58. e7 {[%clk
0:00:10.8]} 58... c2 {[%clk 0:00:01.7]} 59. Kd2 {[%clk 0:00:10.8]} 59... Kb2
{[%clk 0:00:02.3]} 60. Rc1 {[%clk 0:00:07.3]} 1-0